[Event "Selfoss Chess Festival 2019"]
[Site "Selfoss"]
[Date "2019.11.21"]
[Round "3.4"]
[White "Steingrimsson, Hedinn"]
[Black "Lomasov, Semyon"]
[Result "1/2-1/2"]
[ECO "A17"]
[WhiteElo "2549"]
[BlackElo "2553"]
[Annotator "RC"]
[PlyCount "80"]
[EventDate "2019.11.19"]
[EventType "tourn"]
[EventCountry "ISL"]
[SourceTitle "playchess.com"]
[Source "ChessBase"]
[SourceQuality "1"]
[TimeControl "40/5400+30:900+30"]

1. Nf3 {[%emt 1:30:30]} Nf6 {[%emt 0:00:00]} 2. c4 {[%emt 0:00:00]} e6 {[%emt 0:00:00]} 3. Nc3 {[%emt 0:00:00]} Bb4 {[%emt 0:00:00]} 4. Qc2 {[%emt 0:00:00]} O-O {[%emt 0:00:00]} 5. a3 {[%emt 0:00:00]} Bxc3 {[%emt 0:00:02]} 6. Qxc3 {[%emt 0:00:00]} d6 {[%emt 0:00:05]} 7. b4 {[%emt 0:00:00]} e5 {[%emt 0:00:07]} 8. Bb2 {[%emt 0:00:00]} c5 {[%emt 0:00:26]} 9. d3 {[%emt 0:00:00]} b5 {[%emt 0:00:57]} 10. cxb5 {[%emt 0:00:00]} cxb4 {[%emt 0:00:22]} 11. axb4 {[%emt 0:00:00]} Bd7 {[%emt 0:00:38]} 12. e4 {[%emt 0:00:00]} Bxb5 {[%emt 0:03:01]} 13. Be2 {[%emt 0:00:00]} Nc6 {[%emt 0:16:45]} 14. O-O {[%emt 0:00:00]} Rc8 {[%emt 0:09:44]} 15. Qd2 {[%emt 0:00:00]} Re8 {[%emt 0:01:56]} 16. Rac1 {[%emt 0:00:00]} a6 {[%emt 0:14:25]} 17. Rfe1 {[%emt 0:00:00]} d5 {[%emt 0:06:23]} 18. Bf1 {[%emt 0:00:00]} dxe4 {[%emt 0:28:18]} 19. dxe4 {[%emt 0:00:00]} Qxd2 {[%emt 0:00:35]} 20. Nxd2 {[%emt 0:00:00]} Bxf1 {[%emt 0:00:12]} 21. Rxf1 {[%emt 0:00:00]} Rcd8 {[%emt 0:05:27]} 22. Bc3 {[%emt 0:00:00]} Nd4 {[%emt 0:02:10]} 23. Rfe1 {[%emt 0:00:00]} Nb5 {[%emt 0:00:13]} 24. Nf3 {[%emt 0:00:00]} Nxc3 {[%emt 0:01:32]} 25. Rxc3 {[%emt 0:00:00]} Rb8 {[%emt 0:00:08]} 26. Rc4 {[%emt 0:00:00]} h6 {[%emt 0:02:19]} 27. Kf1 {[%emt 0:00:00]} Rb5 {[%emt 0:01:22]} 28. Ra1 {[%emt 0:00:06]} Reb8 {[%emt 0:00:26]} 29. Ra4 {[%emt 0:00:39]} Nd7 {[%emt 0:02:47]} 30. Rc7 {[%emt 0:03:42]} Nf6 {[%emt 0:00:11]} 31. Rc4 {[%emt 0:02:21]} Nd7 {[%emt 0:00:31]} 32. Rxa6 {[%emt 0:02:47]} Rxb4 {[%emt 0:00:04]} 33. Rxb4 {[%emt 0:00:09]} Rxb4 {[%emt 0:00:02]} 34. Ra8+ {[%emt 0:00:06]} Kh7 {[%emt 0:00:06]} 35. Ra7 {[%emt 0:00:07]} Nc5 {[%emt 0:00:17]} 36. Rxf7 {[%emt 0:00:43]} Rxe4 {[%emt 0:00:10]} 37. Rc7 {[%emt 0:02:11]} Nd3 {[%emt 0:00:50]} 38. Rc3 {[%emt 0:00:22]} Nf4 {[%emt 0:00:55]} 39. g3 {[%emt 0:01:01]} Ne6 {[%emt 0:00:18]} 40. Rd3 {[%emt 0:00:00]} Kg6 {[%emt 0:00:00]} 1/2-1/2

[Event "Selfoss Chess Festival 2019"]
[Site "Selfoss"]
[Date "2019.11.28"]
[Round "8.1"]
[White "Gretarsson, Helgi Ass"]
[Black "Antipov, Mikhail Al."]
[Result "0-1"]
[ECO "D85"]
[WhiteElo "2415"]
[BlackElo "2558"]
[Annotator "RC"]
[PlyCount "40"]
[EventDate "2019.11.19"]
[EventType "tourn"]
[EventCountry "ISL"]
[SourceTitle "playchess.com"]
[Source "ChessBase"]
[SourceQuality "1"]
[TimeControl "40/5400+30:900+30"]

1. d4 {[%emt 0:00:00]} Nf6 {[%emt 0:00:00]} 2. c4 {[%emt 0:00:00]} g6 {[%emt 0:00:00]} 3. Nc3 {[%emt 0:00:00]} d5 {[%emt 0:00:00]} 4. cxd5 {[%emt 0:00:00]} Nxd5 {[%emt 0:00:00]} 5. Bd2 {[%emt 0:00:00]} c5 {[%emt 0:04:13]} 6. dxc5 {[%emt 0:00:12]} Bg7 {[%emt 0:00:11]} 7. Qb3 {[%emt 0:00:15]} Be6 {[%emt 0:05:36]} 8. Qxb7 {[%emt 0:02:40]} O-O {[%emt 0:01:32]} 9. Rc1 {[%emt 0:51:54]} Bxc3 {[%emt 0:22:54]} 10. Bxc3 {[%emt 0:03:43]} Nd7 {[%emt 0:00:28]} 11. Bd2 {[%emt 0:11:34]} Rb8 {[%emt 0:21:08]} 12. Qxa7 {[%emt 0:00:17]} Rxb2 {[%emt 0:00:27]} 13. Nf3 {[%emt 0:01:58]} N5f6 {[%emt 0:25:15]} 14. a3 {[%emt 0:09:01]} Ne4 {[%emt 0:03:15]} 15. Bb4 {[%emt 0:00:59]} Nb8 {[%emt 0:08:08]} 16. Qb6 {[%emt 0:06:40]} Qd5 {[%emt 0:00:58]} 17. g3 {[%emt 0:05:23]} Qc4 {[%emt 0:01:48]} 18. Rd1 {[%emt 0:01:33]} Na6 {[%emt 0:01:04]} 19. e3 {[%emt 0:01:50]} Qc2 {[%emt 0:00:13]} 20. Nd2 {[%emt 0:01:09]} Nxb4 {[%emt 0:00:22]} 0-1

[Event "Selfoss Chess Festival 2019"]
[Site "Selfoss"]
[Date "2019.11.28"]
[Round "8.5"]
[White "Zhigalko, Sergei"]
[Black "Steingrimsson, Hedinn"]
[Result "1-0"]
[ECO "C85"]
[WhiteElo "2574"]
[BlackElo "2549"]
[Annotator "RC"]
[PlyCount "96"]
[EventDate "2019.11.19"]
[EventType "tourn"]
[EventCountry "ISL"]
[SourceTitle "playchess.com"]
[Source "ChessBase"]
[SourceQuality "1"]
[TimeControl "40/5400+30:900+30"]

1. e4 {[%emt 0:00:00]} e5 {[%emt 0:00:17]} 2. Nf3 {[%emt 0:00:00]} Nc6 {[%emt 0:00:04]} 3. Bb5 {[%emt 0:00:00]} a6 {[%emt 0:00:04]} 4. Ba4 {[%emt 0:00:00]} Nf6 {[%emt 0:00:03]} 5. O-O {[%emt 0:00:19]} Be7 {[%emt 0:00:10]} 6. Bxc6 {[%emt 0:00:53]} dxc6 {[%emt 0:01:15]} 7. d3 {[%emt 0:00:04]} Nd7 {[%emt 0:02:04]} 8. Nbd2 {[%emt 0:03:31]} O-O {[%emt 0:03:49]} 9. Nc4 {[%emt 0:00:06]} f6 {[%emt 0:00:36]} 10. Nh4 {[%emt 0:00:26]} Nc5 {[%emt 0:17:17]} 11. Nf5 {[%emt 0:00:35]} Bxf5 {[%emt 0:06:05]} 12. exf5 {[%emt 0:00:06]} Qd5 {[%emt 0:00:56]} 13. Re1 {[%emt 0:06:25]} Rad8 {[%emt 0:01:27]} 14. Qg4 {[%emt 0:03:43]} Rfe8 {[%emt 0:13:49]} 15. Nd2 {[%emt 0:06:57]} Qd4 {[%emt 0:03:07]} 16. Ne4 {[%emt 0:04:24]} Nxe4 {[%emt 0:00:27]} 17. Rxe4 {[%emt 0:00:05]} Qc5 {[%emt 0:01:19]} 18. Rc4 {[%emt 0:05:59]} Qd5 {[%emt 0:01:59]} 19. Be3 {[%emt 0:00:19]} b5 {[%emt 0:03:50]} 20. Re4 {[%emt 0:00:21]} Bc5 {[%emt 0:00:13]} 21. Qh5 {[%emt 0:04:09]} Bxe3 {[%emt 0:01:17]} 22. fxe3 {[%emt 0:00:04]} Qf7 {[%emt 0:01:11]} 23. Qf3 {[%emt 0:00:27]} g5 {[%emt 0:03:10]} 24. fxg6 {[%emt 0:06:32]} hxg6 {[%emt 0:00:03]} 25. Rg4 {[%emt 0:09:51]} Rd6 {[%emt 0:00:45]} 26. Rf1 {[%emt 0:03:14]} Kg7 {[%emt 0:01:26]} 27. b3 {[%emt 0:26:09]} Rh8 {[%emt 0:02:57]} 28. Qg3 {[%emt 0:00:22]} Rh5 {[%emt 0:07:09]} 29. Rf3 {[%emt 0:00:25]} Rd8 {[%emt 0:12:18]} 30. Qf2 {[%emt 0:00:38]} c5 {[%emt 0:03:54]} 31. Rfg3 {[%emt 0:03:08]} Rh6 {[%emt 0:00:09]} 32. Qf5 {[%emt 0:02:43]} Rdh8 {[%emt 0:04:49]} 33. h4 {[%emt 0:01:01]} Rg8 {[%emt 0:03:53]} 34. h5 {[%emt 0:01:55]} Kh7 {[%emt 0:00:03]} 35. hxg6+ {[%emt 0:01:50]} Rgxg6 {[%emt 0:00:03]} 36. d4 {[%emt 0:01:27]} exd4 {[%emt 0:01:45]} 37. exd4 {[%emt 0:00:01]} c4 {[%emt 0:00:02]} 38. bxc4 {[%emt 0:03:40]} bxc4 {[%emt 0:00:01]} 39. Kf2 {[%emt 0:06:17]} Kg7 {[%emt 0:00:13]} 40. d5 {[%emt 0:00:00]} Rxg4 {[%emt 0:00:00]} 41. Rxg4+ {[%emt 0:01:51]} Rg6 {[%emt 0:06:55]} 42. Rxg6+ {[%emt 0:03:48]} Qxg6 {[%emt 0:00:02]} 43. Qxg6+ {[%emt 0:00:06]} Kxg6 {[%emt 0:00:03]} 44. Ke3 {[%emt 0:00:03]} Kf5 {[%emt 0:10:07]} 45. Kd4 {[%emt 0:00:09]} Kf4 {[%emt 0:00:25]} 46. Kxc4 {[%emt 0:00:11]} Kg3 {[%emt 0:00:03]} 47. Kd4 {[%emt 0:00:35]} Kxg2 {[%emt 0:00:06]} 48. Ke4 {[%emt 0:00:39]} Kg3 {[%emt 0:00:04]} 1-0